fUST/lending_fUST_20241024
["ID","MTS","AMOUNT","RATE_DAILY","PERIOD"]
[340735970,1729751441419,-225.057522,0.00026778,7]
[340735971,1729751441430,-225.057522,0.00026778,7]
[340735972,1729751441443,-225.057522,0.00026778,7]
[340735973,1729751441453,-15234.05775971,0.00026778,2]
[340735974,1729751441462,-101773.248981,0.00026778,4]
[340735975,1729751441473,-13229.2946504,0.00026778,4]
[340735976,1729751441482,-62831.44056702,0.00026779,4]
[340736023,1729751446154,-564.41,0.00024989,10]
[340736025,1729751446165,-5017.39208698,0.00026779,4]
[340736027,1729751446177,-8819.52976692,0.00026779,4]
[340736029,1729751446190,-225.057522,0.00026779,7]
[340736030,1729751446203,-225.057522,0.00026779,7]
[340736032,1729751446216,-13601.3,0.00026787,2]
[340736033,1729751446229,-13601.3,0.00026787,2]
[340736034,1729751446241,-13601.3,0.00026787,2]
[340736035,1729751446255,-13601.3,0.00026787,2]
[340736036,1729751446269,-13601.3,0.00026787,2]
[340736037,1729751446282,-13601.3,0.00026787,2]
[340736038,1729751446294,-13601.3,0.00026787,2]
[340736039,1729751446304,-13601.3,0.00026787,2]
[340736040,1729751446315,-13601.3,0.00026787,2]
[340736041,1729751446326,-13601.3,0.00026787,2]
[340736042,1729751446339,-13601.3,0.00026787,2]
[340736043,1729751446352,-5945.04422024,0.00026787,2]
[340736047,1729751808170,779.16,0.00022,60]
[340736091,1729752640616,-165.607804,0.00021918,2]
[340736092,1729752640627,-160.609006,0.0002495,2]
[340736093,1729752640636,-553.9041874,0.00024955,2]
[340736111,1729752643516,-5175.5961996,0.00024955,2]
[340736113,1729752643526,-500.0,0.00025,30]
[340736115,1729752643537,-388.5483638,0.000266,2]
[340736117,1729752643547,-470.34,0.0002667,10]
[340736119,1729752643558,-355.96892407,0.0002667,2]
[340736121,1729752643569,-30509.80981294,0.0002667,4]
[340736154,1729752646468,-38981.42959446,0.0002667,4]
[340736156,1729752646479,-7937.57679021,0.0002667,4]
[340736158,1729752646488,-5000.0,0.00026679,2]
[340736160,1729752646498,-5000.0,0.0002668,2]
[340736162,1729752646507,-5000.0,0.0002668,2]
[340736164,1729752646517,-5000.0,0.0002668,2]
[340736166,1729752646527,-5000.0,0.0002668,2]
[340736168,1729752646536,-5000.0,0.0002668,2]
[340736170,1729752646546,-4858.96416567,0.0002668,2]
[340736172,1729752646556,-69491.2394074,0.0002668,4]
[340736174,1729752646565,-7937.57679021,0.0002668,4]
[340736176,1729752646575,-619.59668485,0.00026689,2]
[340736178,1729752646585,-153.59365678,0.00026689,2]
[340736180,1729752646595,-105542.33101873,0.0002669,2]
[340736310,1729752773832,273.37336231,9.9e-05,2]
[340736312,1729752781673,273.37336231,9.9e-05,2]
[340736313,1729752848025,273.37336231,9.9e-05,2]
[340736314,1729752863968,273.37336231,9.9e-05,2]
[340736315,1729752879015,273.37336231,9.9e-05,2]
[340736316,1729752894338,273.37336231,9.9e-05,2]
[340736319,1729752910229,273.37336231,9.9e-05,2]
[340736322,1729752925929,273.37336231,9.9e-05,2]
[340736323,1729752941705,273.37336231,9.9e-05,2]
[340736324,1729752957675,273.37336231,9.9e-05,2]
[340736325,1729752972950,273.37336231,9.9e-05,2]
[340736326,1729752980772,273.37336231,9.9e-05,2]
[340736327,1729752989395,273.37336231,9.9e-05,2]
[340736328,1729753004671,273.37336231,9.9e-05,2]
[340736329,1729753013170,273.37336231,9.9e-05,2]
[340736330,1729753021280,273.37336231,9.9e-05,2]
[340736331,1729753029683,273.37336231,9.9e-05,2]
[340736332,1729753038901,273.37336231,9.9e-05,2]
[340736333,1729753046798,273.37336231,9.9e-05,2]
[340736334,1729753054627,273.37336231,9.9e-05,2]
[340736335,1729753063417,273.37336231,9.9e-05,2]
[340736336,1729753071231,273.37336231,9.9e-05,2]
[340736337,1729753079843,273.37336231,9.9e-05,2]
[340736338,1729753087722,273.37336231,9.9e-05,2]
[340736339,1729753096337,273.37336231,9.9e-05,2]
[340736340,1729753104150,273.37336231,9.9e-05,2]
[340736341,1729753112041,273.37336231,9.9e-05,2]
[340736342,1729753119826,273.37336231,9.9e-05,2]
[340736343,1729753128791,273.37336231,9.9e-05,2]
[340736344,1729753137602,273.37336231,9.9e-05,2]
[340736345,1729753145687,273.37336231,9.9e-05,2]
[340736346,1729753153481,273.37336231,9.9e-05,2]
[340736347,1729753161530,273.37336231,9.9e-05,2]
[340736348,1729753170179,273.37336231,9.9e-05,2]
[340736349,1729753179256,273.37336231,9.9e-05,2]
[340736350,1729753187193,273.37336231,9.9e-05,2]
[340736351,1729753195304,273.37336231,9.9e-05,2]
[340736352,1729753203568,273.37336231,9.9e-05,2]
[340736353,1729753212152,273.37336231,9.9e-05,2]
[340736354,1729753219985,273.37336231,9.9e-05,2]
[340736355,1729753228046,273.37336231,9.9e-05,2]
[340736356,1729753236374,273.37336231,9.9e-05,2]
[340736357,1729753244943,273.37336231,9.9e-05,2]
[340736358,1729753252784,273.37336231,9.9e-05,2]
[340736359,1729753261120,273.37336231,9.9e-05,2]
[340736360,1729753268953,273.37336231,9.9e-05,2]
[340736361,1729753277604,273.37336231,9.9e-05,2]
[340736362,1729753285864,273.37336231,9.9e-05,2]
[340736364,1729753293708,273.37336231,9.9e-05,2]
[340736365,1729753301852,273.37336231,9.9e-05,2]
[340736366,1729753310419,273.37336231,9.9e-05,2]
[340736367,1729753318524,273.37336231,9.9e-05,2]
[340736368,1729753327045,273.37336231,9.9e-05,2]
[340736369,1729753335126,273.37336231,9.9e-05,2]
[340736370,1729753342899,273.37336231,9.9e-05,2]
[340736371,1729753350985,273.37336231,9.9e-05,2]
[340736372,1729753360033,273.37336231,9.9e-05,2]
[340736373,1729753368046,273.37336231,9.9e-05,2]
[340736374,1729753376365,273.37336231,9.9e-05,2]
[340736375,1729753384224,273.37336231,9.9e-05,2]
[340736376,1729753392842,273.37336231,9.9e-05,2]
[340736377,1729753401023,273.37336231,9.9e-05,2]
[340736378,1729753409043,273.37336231,9.9e-05,2]
[340736379,1729753417592,273.37336231,9.9e-05,2]
[340736380,1729753425928,273.37336231,9.9e-05,2]
[340736381,1729753434907,273.37336231,9.9e-05,2]
[340736382,1729753442475,273.37336231,9.9e-05,2]
[340736383,1729753450668,273.37336231,9.9e-05,2]
[340736384,1729753458723,273.37336231,9.9e-05,2]
[340736385,1729753466982,273.37336231,9.9e-05,2]
[340736386,1729753475031,273.37336231,9.9e-05,2]
[340736387,1729753484159,273.37336231,9.9e-05,2]
[340736388,1729753492306,273.37336231,9.9e-05,2]
[340736389,1729753500306,273.37336231,9.9e-05,2]
[340736391,1729753510039,273.37336231,9.9e-05,2]
[340736392,1729753517585,273.37336231,9.9e-05,2]
[340736393,1729753525807,273.37336231,9.9e-05,2]
[340736394,1729753533400,273.37336231,9.9e-05,2]
[340736395,1729753541140,273.37336231,9.9e-05,2]
[340736398,1729753549761,273.37336231,9.9e-05,2]
[340736399,1729753558731,273.37336231,9.9e-05,2]
[340736400,1729753567131,273.37336231,9.9e-05,2]
[340736401,1729753575781,273.37336231,9.9e-05,2]
[340736402,1729753584433,273.37336231,9.9e-05,2]
[340736403,1729753592275,273.37336231,9.9e-05,2]
[340736404,1729753600098,273.37336231,9.9e-05,2]
[340736405,1729753608133,273.37336231,9.9e-05,2]
[340736406,1729753615969,273.37336231,9.9e-05,2]
[340736407,1729753624244,273.37336231,9.9e-05,2]
[340736408,1729753631932,273.37336231,9.9e-05,2]
[340736409,1729753641001,273.37336231,9.9e-05,2]
[340736412,1729753649067,273.37336231,9.9e-05,2]
[340736413,1729753657642,273.37336231,9.9e-05,2]
[340736414,1729753666010,273.37336231,9.9e-05,2]
[340736415,1729753688988,273.37336231,9.9e-05,2]
[340736416,1729753697069,273.37336231,9.9e-05,2]
[340736417,1729753705635,273.37336231,9.9e-05,2]
[340736418,1729753713982,273.37336231,9.9e-05,2]
[340736419,1729753722689,273.37336231,9.9e-05,2]
[340736420,1729753731145,273.37336231,9.9e-05,2]
[340736421,1729753739309,273.37336231,9.9e-05,2]
[340736422,1729753747178,273.37336231,9.9e-05,2]
[340736423,1729753755261,273.37336231,9.9e-05,2]
[340736424,1729753763213,273.37336231,9.9e-05,2]
[340736425,1729753771718,273.37336231,9.9e-05,2]
[340736466,1729753837954,273.37336231,9.9e-05,2]
[340736469,1729753839054,-742.11164325,0.00021818,2]
[340736470,1729753839064,-164.883858,0.00021918,2]
[340736471,1729753839075,-491.178358,0.00023267,2]
[340736472,1729753839087,-1748.9578066,0.00023274,2]
[340736473,1729753839096,-508.43371124,0.00023694,2]
[340736474,1729753839106,-508.43371124,0.00023773,2]
[340736475,1729753839115,-158.464622,0.00023794,2]
[340736476,1729753839125,-508.43371124,0.00023852,2]
[340736477,1729753839136,-2017.2902539,0.00023857,2]
[340736478,1729753839147,-300.0,0.00023907,2]
[340736479,1729753839156,-300.0,0.00023907,2]
[340736480,1729753839165,-10934.2726228,0.00023908,2]
[340736481,1729753839175,-491.178358,0.00023952,2]
[340736482,1729753839186,-158.464622,0.00024001,2]
[340736483,1729753839195,-158.464622,0.00024208,2]
[340736484,1729753839204,-158.464622,0.00024414,2]
[340736485,1729753839213,-158.464622,0.00024621,2]
[340736486,1729753839224,-491.178358,0.00024636,2]
[340736487,1729753839234,-158.464622,0.00024828,2]
[340736488,1729753839243,-484.40394349,0.00025,2]
[340736489,1729753839252,-26249.36247296,0.00025,2]
[340736490,1729753839265,-11778.97066347,0.00025,2]
[340736491,1729753839276,-158.464622,0.00025034,2]
[340736492,1729753839286,-302.1935542,0.00025478,2]
[340736493,1729753839295,-454.99552,0.00025778,2]
[340736494,1729753839305,-300.0,0.00025928,2]
[340736495,1729753839314,-300.0,0.00026,14]
[340736496,1729753839323,-302.4816994,0.00026078,2]
[340736497,1729753839332,-153.0,0.00026301,2]
[340736498,1729753839342,-153.0,0.00026301,2]
[340736499,1729753839351,-153.0,0.00026301,2]
[340736500,1729753839361,-153.0,0.00026301,2]
[340736501,1729753839380,-7796.42510713,0.0002657,2]
[340736502,1729753839391,-385.2,0.00026806,3]
[340736503,1729753839401,-292.38,0.00026806,10]
[340736504,1729753839410,-427.81,0.00026806,10]
[340736505,1729753839420,-356.51,0.00026806,10]
[340736506,1729753839431,-749.36954493,0.00026816,4]
[340736539,1729753840757,-1403.3621138,0.00024934,2]
[340736541,1729753840768,-3730.45881018,0.00026816,4]
[340736543,1729753840780,-12485.22289979,0.00026816,4]
[340736545,1729753840789,-53922.1529995,0.00026816,4]
[340736547,1729753840799,-500.0,0.00026819,2]
[340736549,1729753840808,-500.0,0.00026819,2]
[340736551,1729753840817,-500.0,0.00026819,2]
[340736553,1729753840827,-154.87607071,0.00026819,2]
[340736555,1729753840839,-345.12392929,0.00026819,2]
[340736557,1729753840849,-142.09107221,0.00026819,2]
[340736559,1729753840865,-357.90892779,0.00026819,2]
[340736562,1729753840874,-442.03501606,0.00026819,2]
[340736564,1729753840884,-8299.4512597,0.0002682,4]
[340736588,1729753843791,-13321.78707909,0.0002682,4]
[340736589,1729753843808,-1292.93930453,0.0002682,4]
[340736602,1729753986136,273.37336231,9.9e-05,2]
[340736603,1729753994530,273.37336231,9.9e-05,2]
[340736604,1729754003061,273.37336231,9.9e-05,2]
[340736605,1729754010890,273.37336231,9.9e-05,2]
[340736606,1729754020003,273.37336231,9.9e-05,2]
[340736607,1729754028374,273.37336231,9.9e-05,2]
[340736608,1729754036917,273.37336231,9.9e-05,2]
[340736609,1729754045215,273.37336231,9.9e-05,2]
[340736610,1729754053737,273.37336231,9.9e-05,2]
[340736611,1729754062120,273.37336231,9.9e-05,2]
[340736612,1729754070712,273.37336231,9.9e-05,2]
[340736613,1729754078920,273.37336231,9.9e-05,2]
[340736614,1729754086665,273.37336231,9.9e-05,2]
[340736615,1729754095089,273.37336231,9.9e-05,2]
[340736617,1729754103020,273.37336231,9.9e-05,2]
[340736618,1729754111992,273.37336231,9.9e-05,2]
[340736619,1729754120020,273.37336231,9.9e-05,2]
[340736620,1729754127803,273.37336231,9.9e-05,2]
[340736621,1729754136168,273.37336231,9.9e-05,2]
[340736622,1729754144237,273.37336231,9.9e-05,2]
[340736623,1729754152604,273.37336231,9.9e-05,2]
[340736624,1729754160607,273.37336231,9.9e-05,2]
[340736625,1729754168398,273.37336231,9.9e-05,2]
[340736626,1729754177080,273.37336231,9.9e-05,2]
[340736627,1729754184916,273.37336231,9.9e-05,2]
[340736628,1729754192943,273.37336231,9.9e-05,2]
[340736629,1729754200982,273.37336231,9.9e-05,2]
[340736630,1729754208849,273.37336231,9.9e-05,2]
[340736631,1729754216785,273.37336231,9.9e-05,2]
[340736632,1729754224846,273.37336231,9.9e-05,2]
[340736633,1729754232759,273.37336231,9.9e-05,2]
[340736634,1729754240868,273.37336231,9.9e-05,2]
[340736635,1729754248854,273.37336231,9.9e-05,2]
[340736636,1729754256906,273.37336231,9.9e-05,2]
[340736637,1729754265383,273.37336231,9.9e-05,2]
[340736638,1729754273660,273.37336231,9.9e-05,2]
[340736639,1729754281470,273.37336231,9.9e-05,2]
[340736640,1729754290144,273.37336231,9.9e-05,2]
[340736641,1729754298478,273.37336231,9.9e-05,2]
[340736642,1729754306488,273.37336231,9.9e-05,2]
[340736643,1729754314326,273.37336231,9.9e-05,2]
[340736644,1729754322420,273.37336231,9.9e-05,2]
[340736645,1729754331291,273.37336231,9.9e-05,2]
[340736646,1729754339555,273.37336231,9.9e-05,2]
[340736647,1729754347328,273.37336231,9.9e-05,2]
[340736648,1729754355900,273.37336231,9.9e-05,2]
[340736649,1729754364265,273.37336231,9.9e-05,2]
[340736650,1729754372140,273.37336231,9.9e-05,2]
[340736651,1729754380685,273.37336231,9.9e-05,2]
[340736652,1729754389987,273.37336231,9.9e-05,2]
[340736653,1729754397849,273.37336231,9.9e-05,2]
[340736654,1729754405961,273.37336231,9.9e-05,2]
[340736655,1729754413853,273.37336231,9.9e-05,2]
[340736656,1729754421923,273.37336231,9.9e-05,2]
[340736657,1729754430848,273.37336231,9.9e-05,2]
[340736658,1729754439463,273.37336231,9.9e-05,2]
[340736659,1729754447363,273.37336231,9.9e-05,2]
[340736661,1729754457072,273.37336231,9.9e-05,2]
[340736662,1729754464923,273.37336231,9.9e-05,2]
[340736663,1729754472980,273.37336231,9.9e-05,2]
[340736664,1729754481324,273.37336231,9.9e-05,2]
[340736665,1729754489448,273.37336231,9.9e-05,2]
[340736666,1729754497265,273.37336231,9.9e-05,2]
[340736667,1729754505534,273.37336231,9.9e-05,2]
[340736668,1729754513356,273.37336231,9.9e-05,2]
[340736669,1729754522369,273.37336231,9.9e-05,2]
[340736670,1729754530822,273.37336231,9.9e-05,2]
[340736671,1729754539457,273.37336231,9.9e-05,2]
[340736672,1729754547390,273.37336231,9.9e-05,2]
[340736673,1729754555179,273.37336231,9.9e-05,2]
[340736674,1729754563298,273.37336231,9.9e-05,2]
[340736675,1729754571162,273.37336231,9.9e-05,2]
[340736676,1729754579210,273.37336231,9.9e-05,2]
[340736677,1729754586982,273.37336231,9.9e-05,2]
[340736678,1729754595851,273.37336231,9.9e-05,2]
[340736679,1729754603669,273.37336231,9.9e-05,2]
[340736680,1729754611245,273.37336231,9.9e-05,2]
[340736681,1729754619143,273.37336231,9.9e-05,2]
[340736682,1729754627390,273.37336231,9.9e-05,2]
[340736683,1729754635440,273.37336231,9.9e-05,2]
[340736684,1729754643296,273.37336231,9.9e-05,2]
[340736685,1729754651150,273.37336231,9.9e-05,2]
[340736686,1729754659744,273.37336231,9.9e-05,2]
[340736687,1729754668099,273.37336231,9.9e-05,2]
[340736688,1729754675923,273.37336231,9.9e-05,2]
[340736689,1729754684196,273.37336231,9.9e-05,2]
[340736690,1729754692190,273.37336231,9.9e-05,2]
[340736691,1729754701015,273.37336231,9.9e-05,2]
[340736692,1729754708824,273.37336231,9.9e-05,2]
[340736693,1729754716854,273.37336231,9.9e-05,2]
[340736694,1729754725213,273.37336231,9.9e-05,2]
[340736721,1729754733614,273.37336231,9.9e-05,2]
[340736722,1729754741735,273.37336231,9.9e-05,2]
[340736723,1729754750026,273.37336231,9.9e-05,2]
[340736725,1729754759788,273.37336231,9.9e-05,2]
[340736726,1729754768184,273.37336231,9.9e-05,2]
[340736727,1729754776323,273.37336231,9.9e-05,2]
[340736729,1729754784214,273.37336231,9.9e-05,2]
[340736731,1729754792486,273.37336231,9.9e-05,2]
[340736732,1729754799790,273.37336231,9.9e-05,2]
[340736734,1729754807876,273.37336231,9.9e-05,2]
[340736735,1729754815705,273.37336231,9.9e-05,2]
[340736736,1729754823505,273.37336231,9.9e-05,2]
[340736737,1729754831597,273.37336231,9.9e-05,2]
[340736738,1729754839464,273.37336231,9.9e-05,2]
[340736743,1729754847295,273.37336231,9.9e-05,2]
[340736745,1729754855914,273.37336231,9.9e-05,2]
[340736746,1729754863957,273.37336231,9.9e-05,2]
[340736747,1729754872827,273.37336231,9.9e-05,2]
[340736753,1729754881481,273.37336231,9.9e-05,2]
[340736754,1729754889382,273.37336231,9.9e-05,2]
[340736755,1729754897552,273.37336231,9.9e-05,2]
[340736756,1729754905911,273.37336231,9.9e-05,2]
[340736757,1729754913929,273.37336231,9.9e-05,2]
[340736758,1729754922526,273.37336231,9.9e-05,2]
[340736759,1729754930494,273.37336231,9.9e-05,2]
[340736760,1729754939042,273.37336231,9.9e-05,2]
[340736761,1729754946824,273.37336231,9.9e-05,2]
[340736762,1729754954973,273.37336231,9.9e-05,2]
[340736763,1729754963461,273.37336231,9.9e-05,2]
[340736764,1729754972444,273.37336231,9.9e-05,2]
[340736765,1729754980298,273.37336231,9.9e-05,2]
[340736766,1729754988770,273.37336231,9.9e-05,2]
[340736772,1729754997066,273.37336231,9.9e-05,2]
[340736784,1729755005003,273.37336231,9.9e-05,2]
[340736786,1729755012920,273.37336231,9.9e-05,2]
[340736787,1729755028240,273.37336231,9.9e-05,2]
[340736854,1729755038055,-2152.70805012,0.0002,3]
[340736856,1729755038066,-164.883858,0.00021918,2]
[340736858,1729755038077,-160.609006,0.00025541,2]
[340736860,1729755038087,-3850.9675941,0.00025667,2]
[340736861,1729755038098,-300.0,0.00025998,2]
[340736862,1729755038107,-300.0,0.00025998,2]
[340736863,1729755038116,-6127.31909683,0.00025999,2]
[340736864,1729755038125,-451.05541658,0.000265,14]
[340736865,1729755038134,-153.986,0.0002658,2]
[340736866,1729755038143,-151.0,0.000266,2]
[340736867,1729755038152,-199.02963855,0.00026818,2]
[340736868,1729755038161,-500.0,0.0002688,4]
[340736870,1729755038170,-500.0,0.0002688,4]
[340736871,1729755038179,-500.0,0.0002688,4]
[340736872,1729755038188,-500.0,0.0002688,4]
[340736873,1729755038198,-500.0,0.0002688,4]
[340736874,1729755038207,-500.0,0.0002688,4]
[340736875,1729755038217,-267.99925997,0.0002688,4]
[340736876,1729755038227,-1336.34120305,0.00026993,2]
[340736877,1729755038236,-1000.0,0.00027,120]
[340736878,1729755038246,-378.34443021,0.00027013,2]
[340736879,1729755038255,-6541.69977009,0.00027013,2]
[340736880,1729755038269,-38728.01370681,0.00027013,2]
[340736881,1729755038281,-151.0,0.00027093,7]
[340736882,1729755038290,-297.09,0.00027093,10]
[340736883,1729755038300,-247.58,0.00027093,10]
[340736884,1729755038310,-712.62,0.00027093,3]
[340736885,1729755038319,-158.033292,0.000271,9]
[340736886,1729755038328,-151.0,0.00027102,7]
[340736888,1729755038338,-18559.1189011,0.00027103,4]
[340736890,1729755038347,-50080.3364674,0.00027103,4]
[340736891,1729755038357,-326.89277956,0.00027112,2]
[340736893,1729755038366,-151.0,0.00027113,7]
[340736895,1729755038377,-151.0,0.00027113,7]
[340736897,1729755038386,-298.210508,0.00027113,7]
[340736899,1729755038396,-151.0,0.00027113,7]
[340736901,1729755038405,-151.0,0.00027113,7]
[340736903,1729755038414,-151.0,0.00027113,7]
[340736905,1729755038424,-151.0,0.00027113,7]
[340736906,1729755038433,-151.0,0.00027113,7]
[340736907,1729755038444,-151.0,0.00027113,7]
[340736908,1729755038454,-151.767582,0.00027113,7]
[340736909,1729755038465,-151.0,0.00027113,7]
[340736910,1729755038474,-151.0,0.00027113,7]
[340736911,1729755038485,-151.0,0.00027113,7]
[340736912,1729755038495,-151.0,0.00027113,7]
[340736913,1729755038507,-151.0,0.00027113,7]
[340736914,1729755038517,-151.0,0.00027113,7]
[340736915,1729755038527,-151.512874,0.00027113,7]
[340736916,1729755038538,-151.0,0.00027113,7]
[340736917,1729755038548,-151.0,0.00027113,7]
[340736918,1729755038558,-151.0,0.00027113,7]
[340736919,1729755038569,-151.0,0.00027113,7]
[340736920,1729755038579,-151.0,0.00027113,7]
[340736921,1729755038589,-151.0,0.00027113,7]
[340736922,1729755038599,-670.771048,0.00027113,7]
[340736923,1729755038608,-670.771048,0.00027113,7]
[340736924,1729755038618,-670.771048,0.00027113,7]
[340736925,1729755038627,-670.771048,0.00027113,7]
[340736926,1729755038637,-151.0,0.00027113,7]
[340736927,1729755038647,-151.0,0.00027113,7]
[340736928,1729755038656,-260.914866,0.00027113,7]
[340736929,1729755038666,-260.914866,0.00027113,7]
[340736930,1729755038675,-260.914866,0.00027113,7]
[340736931,1729755038685,-260.914866,0.00027113,7]
[340736932,1729755038694,-344.11052,0.00027113,7]
[340736933,1729755038704,-344.11052,0.00027113,7]
[340736934,1729755038714,-1883.172322,0.00027113,7]
[340736935,1729755038723,-1883.172322,0.00027113,7]
[340736936,1729755038731,-151.796408,0.00027113,7]
[340736937,1729755038741,-151.0,0.00027113,7]
[340736938,1729755038750,-3548.636848,0.00027113,7]
[340736939,1729755038759,-151.0,0.00027113,7]
[340736940,1729755038770,-3548.636848,0.00027113,7]
[340736941,1729755038780,-151.0,0.00027113,7]
[340736942,1729755038789,-5021.539435,0.00027113,7]
[340736943,1729755038799,-529.838719,0.00027113,7]
[340736944,1729755038808,-5021.539435,0.00027113,7]
[340736945,1729755038817,-529.838719,0.00027113,7]
[340736946,1729755038826,-151.0,0.00027113,7]
[340736947,1729755038836,-151.836978,0.00027113,7]
[340736948,1729755038845,-151.0,0.00027113,7]
[340736949,1729755038855,-849.265134,0.00027113,7]
[340736950,1729755038865,-849.265134,0.00027113,7]
[340736951,1729755038875,-151.0,0.00027113,7]
[340736952,1729755038885,-151.0,0.00027113,7]
[340736953,1729755038896,-151.0,0.00027113,7]
[340736954,1729755038905,-564.645118,0.00027113,7]
[340736955,1729755038915,-151.0,0.00027113,7]
[340736956,1729755038924,-564.645118,0.00027113,7]
[340736957,1729755038937,-628.631476,0.00027113,7]
[340736958,1729755038947,-628.631476,0.00027113,7]
[340736959,1729755038957,-37118.2378022,0.00027113,4]
[340736960,1729755038967,-13482.64922511,0.00027113,4]
[340736970,1729755039940,-13627.61811846,0.00027113,4]
[340737003,1729755043683,-528.832,0.0002658,2]
[340737004,1729755043693,-206.31,0.00027093,10]
[340737005,1729755043704,-26505.03947897,0.00027113,4]
[340737026,1729755046027,-9066.10941806,0.00027113,4]
[340737027,1729755046043,-1869.59273563,0.00027113,4]
[340737029,1729755134265,150.66138882,9.9e-05,2]
[340737030,1729755149873,273.37336231,9.9e-05,2]
[340737031,1729755166696,273.37336231,9.9e-05,2]
[340737033,1729755182102,273.37336231,9.9e-05,2]
[340737034,1729755197590,273.37336231,9.9e-05,2]
[340737035,1729755212581,273.37336231,9.9e-05,2]
[340737036,1729755228945,273.37336231,9.9e-05,2]
[340737037,1729755244638,273.37336231,9.9e-05,2]
[340737038,1729755260337,273.37336231,9.9e-05,2]
[340737039,1729755275792,273.37336231,9.9e-05,2]
[340737040,1729755290998,273.37336231,9.9e-05,2]
[340737041,1729755307340,273.37336231,9.9e-05,2]
[340737042,1729755322715,273.37336231,9.9e-05,2]
[340737043,1729755337957,273.37336231,9.9e-05,2]
[340737044,1729755353552,273.37336231,9.9e-05,2]
[340737045,1729755364975,157.0,1e-05,120]
[340737091,1729756231919,-200.0,0.00013973,2]
[340737092,1729756231929,-366.0,0.0002127,2]
[340737093,1729756231938,-21.17663188,0.00021918,2]
[340737094,1729756232206,-143.70722612,0.00021918,2]
[340737095,1729756232215,-301.93937,0.00025301,2]
[340737096,1729756232225,-280.56012501,0.00025309,2]
[340737097,1729756232236,-1761.54477808,0.00025309,2]
[340737113,1729756238252,-782.82322801,0.00025309,2]
[340737114,1729756238262,-366.0,0.0002532,2]
[340737115,1729756238272,-66.41568066,0.00025356,2]
[340737116,1729756238310,-800.44179754,0.00025356,2]
[340737117,1729756238321,-178.82728714,0.00025378,2]
[340737137,1729756243135,-306.54787286,0.00025378,2]
[340737138,1729756243146,-300.0,0.00025395,2]
[340737139,1729756243156,-300.0,0.00025395,2]
[340737140,1729756243165,-5015.493934,0.00025396,2]
[340737141,1729756243175,-163.756134,0.00025768,2]
[340737142,1729756243186,-2000.0,0.00026,30]
[340737143,1729756243200,-163.756134,0.00026036,2]
[340737144,1729756243223,-485.37516,0.00026063,2]
[340737145,1729756243264,-163.756134,0.00026305,2]
[340737146,1729756243351,-163.756134,0.00026574,2]
[340737147,1729756243432,-485.37516,0.00026748,2]
[340737148,1729756243575,-163.756134,0.00026842,2]
[340737149,1729756243656,-1000.0,0.00026856,2]
[340737150,1729756243749,-1000.0,0.00026867,2]
[340737151,1729756243844,-1004.02547989,0.00026875,2]
[340737152,1729756243924,-1000.0,0.00026945,2]
[340737153,1729756244031,-1007.09299612,0.0002697,2]
[340737154,1729756244107,-502.14,0.00027,7]
[340737155,1729756244118,-1000.0,0.00027,120]
[340737156,1729756244128,-1275.20454457,0.00027023,2]
[340737157,1729756244138,-163.756134,0.00027111,2]
[340737158,1729756244149,-199.02963855,0.00027111,2]
[340737159,1729756244159,-252.22962014,0.00027123,2]
[340737160,1729756244168,-26827.25124872,0.00027123,2]
[340737217,1729757300207,273.37336231,9.9e-05,2]
[340737218,1729757308006,273.37336231,9.9e-05,2]
[340737219,1729757315937,273.37336231,9.9e-05,2]
[340737220,1729757338254,273.37336231,9.9e-05,2]
[340737221,1729757346565,273.37336231,9.9e-05,2]
[340737222,1729757354712,273.37336231,9.9e-05,2]
[340737257,1729757432120,-200.0,0.00013973,2]
[340737259,1729757432131,-164.883858,0.00021918,2]
[340737261,1729757432141,-250.0,0.00025289,2]
[340737263,1729757432151,-301.93937,0.00025433,2]
[340737265,1729757432161,-300.0,0.00025437,2]
[340737269,1729757432178,-300.0,0.00025437,2]
[340737272,1729757432194,-9903.594272,0.00025438,2]
[340737357,1729757443196,-4974.3965574,0.00025,2]